[Event "13th Asrian Memorial 2022"]
[Site "Yerevan"]
[Date "2022.06.13"]
[Round "7.6"]
[White "Davtyan, Arsen"]
[Black "Derbenev Andrey"]
[Result "1/2-1/2"]
[ECO "B27"]
[WhiteElo "2308"]
[BlackElo "2376"]
[Annotator "TA"]
[PlyCount "121"]
[EventDate "2022.06.07"]
[EventType "swiss"]
[EventCountry "ARM"]
[SourceTitle "playchess.com"]
[Source "ChessBase"]
[SourceQuality "1"]
[TimeControl "40/5400+30:1800+30"]

{[%evp 10,121,27,16,25,14,27,22,34,9,19,20,21,22,16,38,24,-15,-22,-33,-26,-25,-9,-42,0,-53,-48,-90,0,0,0,0,0,0,52,44,117,27,181,214,237,63,50,48,58,40,157,35,29,0,20,0,6,-14,-6,-50,-30,-28,0,-3,0,0,0,0,0,0,0,-75,-77,-75,-75,-68,-75,-73,-73,-395,-389,-546,-165,-158,-159,-150,-92,-100,-111,-115,-64,-64,-64,-64,0,0,0,-64,-64,-64,-50,-40,-41,-58,-36,-46,-36,-36,-14,-47,0,-49,-20,-29,0,0,0,-12833]} 1. e4 {[%emt 0:00:03]} c5 {[%emt 0:00:05]} 2. Nf3 {[%emt 0:00:06]} g6 {[%emt 0:00:05]} 3. c3 {[%emt 0:00:11]} Bg7 {[%emt 0:00:06]} 4. d4 {[%emt 0:00:06]} cxd4 {[%emt 0:00:03]} 5. cxd4 {[%emt 0:00:05]} d5 {[%emt 0:00:03]} 6. e5 {[%emt 0:00:10]} a6 {[%emt 0:00:04] B27: Sicilian: 2 Nf3, unusual Black 2nd moves.} 7. Nc3 {[%emt 0:00:15]} Nc6 {[%emt 0:00:06]} 8. h3 {[%emt 0:00:06]} f6 {[%emt 0:00:04][%cal Rf6e5]} 9. exf6 {[%emt 0:00:25]} (9. Bf4 $5 {[%cal Rd1a4]}) 9... Nxf6 {[%emt 0:00:05]} 10. Be2 {[%emt 0:00:05]} O-O {[%emt 0:00:11]} 11. O-O {[%emt 0:00:18]} Nh5 {[%emt 0:03:40]} 12. Re1 {[%emt 0:32:43]} Nf4 {[%emt 0:04:55] [#]} 13. Bxf4 $146 {[%emt 0:13:02]} ({Predecessor:} 13. Bf1 Qd6 14. Be3 Bd7 15. Rc1 Kh8 16. Na4 Rad8 17. Nc5 Bc8 18. g3 b6 19. Bxf4 Rxf4 20. gxf4 bxc5 {1-0 (29) Berchtenbreiter,M (2432)-Troyke,C (2332) Germany 2019}) 13... Rxf4 {[%emt 0:00:42]} 14. Qc1 {[%emt 0:03:18]} Rf5 {[%emt 0:07:31]} 15. Qd2 {[%emt 0:04:11]} Qd6 {[%emt 0:04:40]} 16. Rac1 {[%emt 0:04:00]} b5 {[%emt 0:13:56]} 17. Qe3 {[%emt 0:09:47]} (17. a4 $11) 17... Bd7 $15 {[%emt 0:04:38]} 18. Bd3 {[%emt 0:01:06] [#]} Rxf3 {[%emt 0:04:35]} 19. Qxf3 $11 {[%emt 0:00:38]} e6 {[%emt 0:00:00]} 20. Ne2 {[%emt 0:06:44]} Nxd4 {[%emt 0:03:17]} 21. Qe3 {[%emt 0:00:28]} Qb4 {[%emt 0:07:39]} (21... Nc6 $1 $11) 22. b3 {[%emt 0:09:19][%cal Oa2a3]} Rf8 {[%emt 0:04:02]} (22... Nc6 $14) 23. Kh1 {[%emt 0:00:07]} (23. a3 $16 Nxe2+ 24. Bxe2) 23... Nf5 $2 {[%emt 0:13:49]} (23... Nxe2 $11 24. Rxe2 Bd4) 24. Qa7 $1 $18 {[%emt 0:04:48][%csl LRa6,LRd7]} Qd6 {[%emt 0:06:17]} 25. Qc7 $2 {[%emt 0:00:10]} (25. Rc7 $18 Rd8 26. Rec1) 25... Be5 $14 {[%emt 0:01:43]} 26. Qxd6 {[%emt 0:02:26]} Bxd6 {[%emt 0:00:02]} 27. Kg1 {[%emt 0:01:46]} (27. Bxf5 $5 Rxf5 28. Kg1 $14) 27... e5 {[%emt 0:04:11]} (27... Ne7 $14) 28. Red1 {[%emt 0:01:50]} (28. Bxf5 $16 Bxf5 29. Red1) 28... Ne7 $1 {[%emt 0:01:41]} 29. Nc3 {[%emt 0:02:57][%cal Oc3d5]} (29. a4 $5) 29... Be6 {[%emt 0:01:08]} 30. Rc2 {[%emt 0:00:34][%cal Od3e4]} Bb8 {[%emt 0:02:06]} 31. Nb1 {[%emt 0:01:41]} e4 {[%emt 0:02:16]} 32. Bf1 {[%emt 0:00:09]} Ba7 $1 {[%emt 0:00:26]} 33. a4 {[%emt 0:00:49]} e3 {[%emt 0:03:01]} (33... Nf5 $5 {[%cal Re4e3]} 34. g4 Nd4 $15) 34. Rc7 {[%emt 0:02:06]} exf2+ {[%emt 0:02:57]} 35. Kh1 {[%emt 0:00:01]} Nc8 {[%emt 0:00:06]} 36. axb5 {[%emt 0:00:06]} axb5 {[%emt 0:00:10]} 37. Nc3 {[%emt 0:01:15]} Bb8 {[%emt 0:02:11]} 38. Rb7 {[%emt 0:00:29]} (38. Rc6 $11 Nd6 39. g4) 38... Nd6 $1 $17 {[%emt 0:00:31]} 39. Rb6 {[%emt 0:00:24]} d4 $1 $36 {[%emt 0:02:41][%mdl 2048] Black has strong initiative.} ({Reject} 39... Bc7 $6 40. Rc6 Bb8 41. Nxd5 $15) 40. Rxd4 {[%emt 0:00:00]} Nf5 {[%emt 0:00:00] ( -> ...Ng3+)} 41. Rd3 {[%emt 0:05:18]} Bxb3 {[%emt 0:03:39] aiming for ...Bc4. A strong pair of Bishops.} 42. Rxb5 $2 {[%emt 0:12:18][%mdl 8192]} (42. g4 $17 {was the crucial defense.} Ng3+ 43. Rxg3 Bxg3 44. Rxb5) 42... Bc4 $1 $19 {[%emt 0:07:11][%csl LRb5,LRd3][%mdl 64] Skewer, Double Attack} 43. Rxf5 {[%emt 0:00:19]} (43. g4 $142 Bxd3 44. Bxd3) 43... Rxf5 $2 {[%emt 0:11:41]} (43... gxf5 44. Rd1 Bxf1 45. Rxf1 Re8) 44. Rd1 {[%emt 0:00:15]} Bxf1 {[%emt 0:00:26]} 45. Rxf1 $17 {[%emt 0:00:05][%mdl 4096] Endgame KRB-KRN} Re5 {[%emt 0:00:28] Prevents Ne4.} (45... h5 $142 $1 {Strongly threatening ...Bg3.} 46. g4 Rf3) 46. g4 {[%emt 0:00:24] [#]} Re3 $1 {[%emt 0:01:03][%csl LRc3,LRh3]} 47. Nd5 {[%emt 0:00:08] [#]} Rxh3+ {[%emt 0:00:58]} (47... Rd3 $1 $17 {[%cal Rd3d5]} 48. Nf6+ Kg7 49. Rxf2 Rxh3+ 50. Kg1 Ba7 51. Ne8+ Kh6) 48. Kg2 $15 {[%emt 0:00:05]} Rh2+ {[%emt 0:00:29]} 49. Kf3 {[%emt 0:00:04]} Ba7 {[%emt 0:00:18]} ({Black should try} 49... Kf7 $15 50. Rxf2 Rxf2+ 51. Kxf2 Ke6) 50. Kg3 $1 $11 {[%emt 0:00:22]} Bb8+ {[%emt 0:00:53]} ({Better is} 50... Rh6 $11 51. g5 Bb8+ 52. Kxf2 Rh2+ 53. Kf3 Be5) 51. Kf3 $15 {[%emt 0:00:06]} Kg7 {[%emt 0:02:26] Against Nf6} 52. Rxf2 {[%emt 0:02:58]} Rh3+ {[%emt 0:00:06]} 53. Ke4 {[%emt 0:01:56]} Rg3 {[%emt 0:00:31]} 54. Nf6 {[%emt 0:01:54]} Ba7 {[%emt 0:02:59]} 55. Rf1 {[%emt 0:01:09][%cal Of6h7]} Re3+ {[%emt 0:01:20]} 56. Kd5 {[%emt 0:00:03][%cal Of6h7]} Rd3+ {[%emt 0:01:58]} 57. Ke4 {[%emt 0:02:13]} Re3+ {[%emt 0:00:24]} 58. Kd5 {[%emt 0:00:04][%cal Of6h7]} Bb8 {[%emt 0:00:33]} 59. Ne4 {[%emt 0:01:13]} Rb3 {[%emt 0:01:47]} 60. Nc5 {[%emt 0:01:22] White wants to mate with Ne6+.} Rb5 {[%emt 0:02:33] Threatens to win with ...Ba7.} 61. Ke4 $2 {[%emt 0:01:20][%mdl 40960] What a fight!  Weighted Error Value: White=0.33/Black=0.27 (precise) . An unexpected result.} 1/2-1/2

[Event "13th Asrian Memorial 2022"]
[Site "Yerevan"]
[Date "2022.06.13"]
[Round "7.7"]
[White "Melkumyan, Hrant"]
[Black "Hakobyan, Erik"]
[Result "1-0"]
[ECO "A16"]
[WhiteElo "2655"]
[BlackElo "2108"]
[Annotator "TA"]
[PlyCount "53"]
[EventDate "2022.06.07"]
[EventType "swiss"]
[EventCountry "ARM"]
[SourceTitle "playchess.com"]
[Source "ChessBase"]
[SourceQuality "1"]
[TimeControl "40/5400+30:1800+30"]

{[%evp 9,53,25,35,0,40,0,0,0,0,-5,30,27,27,34,29,25,62,27,33,39,104,95,87,105,201,210,256,265,270,239,265,242,255,241,291,268,287,280,277,265,350,346,421,419,408,383]} 1. c4 {[%emt 0:11:28]} Nf6 {[%emt 0:01:47]} 2. Nf3 {[%emt 0:00:54]} g6 {[%emt 0:00:17]} 3. Nc3 {[%emt 0:01:23]} d5 {[%emt 0:01:02]} 4. cxd5 {[%emt 0:00:10]} Nxd5 {[%emt 0:00:06]} 5. h4 {[%emt 0:00:39][%cal Bh2h4,Bh4h5][%mdl 32]} Bg7 {[%emt 0:01:58]} 6. h5 {[%emt 0:00:53] A16: English Opening: 1...Nf6 with ...d5.} e5 {[%emt 0:10:36] [#]} 7. d3 $146 {[%emt 0:20:20]} ({Predecessor:} 7. Qb3 Nb6 8. d3 Be6 9. Qd1 Nc6 10. Ne4 f6 11. Nc5 Qe7 12. Nxe6 Qxe6 13. hxg6 hxg6 14. Rxh8+ Bxh8 {0-1 (56) Dambrauskas,V (2360)-Toma,K (2238) Frydek Mistek 2006}) 7... Nc6 {[%emt 0:05:07]} 8. Bg5 {[%emt 0:01:34] The position is equal.} Nxc3 {[%emt 0:00:30]} 9. bxc3 {[%emt 0:00:30]} f6 {[%emt 0:03:38]} (9... Qd6 $5 {[%cal Re5e4]}) 10. Be3 {[%emt 0:01:25]} Be6 {[%emt 0:04:02]} 11. g3 {[%emt 0:00:14]} Qd7 {[%emt 0:05:36]} 12. Bg2 {[%emt 0:00:24]} g5 {[%emt 0:05:03]} 13. Nd2 {[%emt 0:01:11]} Bf8 {[%emt 0:05:38]} 14. Rb1 {[%emt 0:01:11][%cal Ba1b1,Bb1b7,Bb7c7,Bc7c6,Bc6a6][%mdl 32]} Bd5 {[%emt 0:15:57]} (14... Nd8 $14) 15. Bxd5 {[%emt 0:01:09]} Qxd5 {[%emt 0:00:07]} 16. Ne4 {[%emt 0:00:17]} Be7 {[%emt 0:02:46]} (16... O-O-O $16 {keeps fighting.}) 17. Rxb7 $18 {[%emt 0:18:53]} f5 {[%emt 0:00:59] [#] And now ...0-0-0 would win.} 18. Qa4 $1 {[%emt 0:01:17]} (18. c4 Qa5+ 19. Qd2 fxe4 20. Qxa5 Nxa5 $17) 18... fxe4 {[%emt 0:08:43]} 19. Rxc7 {[%emt 0:00:08]} exd3 {[%emt 0:00:06]} 20. Qxc6+ {[%emt 0:00:52]} Qxc6 {[%emt 0:00:07]} 21. Rxc6 {[%emt 0:00:08]} Kd7 {[%emt 0:00:04]} 22. Ra6 {[%emt 0:01:42]} Rhc8 {[%emt 0:00:33]} 23. exd3 {[%emt 0:00:32]} Rxc3 {[%emt 0:00:20]} 24. Ke2 {[%emt 0:00:23]} ({Don't blunder} 24. Rxa7+ $2 Rxa7 25. Bxa7 Rc1+ 26. Ke2 Rxh1 $19) 24... g4 {[%emt 0:01:35]} 25. Rb1 {[%emt 0:01:24]} ({Wrong is} 25. Bxa7 $2 Rc7 26. a4 Raxa7 27. Rxa7 Rxa7 $19) ({And not} 25. Rxa7+ Rxa7 26. Bxa7 Rc2+ 27. Kf1 Rxa2 $11) 25... Kc7 {[%emt 0:01:50]} 26. Rb5 {[%emt 0:01:12]} Bd6 {[%emt 0:00:22]} 27. Rba5 {[%emt 0:00:09] Weighted Error Value: White=0.06 (flawless) /Black=0.30} 1-0

[Event "13th Asrian Memorial 2022"]
[Site "Yerevan"]
[Date "2022.06.14"]
[Round "8.1"]
[White "Sargsyan, Shant"]
[Black "Babujian Levon"]
[Result "1-0"]
[ECO "D37"]
[WhiteElo "2641"]
[BlackElo "2430"]
[Annotator "RC"]
[PlyCount "123"]
[EventDate "2022.06.07"]
[EventType "swiss"]
[EventCountry "ARM"]
[SourceTitle "playchess.com"]
[Source "ChessBase"]
[SourceQuality "1"]
[TimeControl "40/5400+30:1800+30"]

1. d4 {[%emt 0:03:03]} Nf6 {[%emt 0:00:06]} 2. Nf3 {[%emt 0:01:06]} d5 {[%emt 0:01:12]} 3. c4 {[%emt 0:00:15]} e6 {[%emt 0:00:15]} 4. Nc3 {[%emt 0:00:14]} Be7 {[%emt 0:00:10]} 5. Bf4 {[%emt 0:00:15]} O-O {[%emt 0:00:37]} 6. e3 {[%emt 0:00:10]} Nbd7 {[%emt 0:00:15]} 7. c5 {[%emt 0:01:03]} c6 {[%emt 0:01:04]} 8. h3 {[%emt 0:00:42]} b6 {[%emt 0:00:05]} 9. b4 {[%emt 0:00:11]} a5 {[%emt 0:00:05]} 10. a3 {[%emt 0:00:10]} h6 {[%emt 0:00:04]} 11. Bd3 {[%emt 0:01:14]} Ba6 {[%emt 0:00:43]} 12. O-O {[%emt 0:00:16]} Qc8 {[%emt 0:01:06]} 13. Qc2 {[%emt 0:03:42]} Qb7 {[%emt 0:01:25]} 14. Rfb1 {[%emt 0:03:24]} axb4 {[%emt 0:00:31]} 15. axb4 {[%emt 0:00:17]} Bxd3 {[%emt 0:01:20]} 16. Qxd3 {[%emt 0:00:19]} Rxa1 {[%emt 0:00:40]} 17. Rxa1 {[%emt 0:00:01]} Ra8 {[%emt 0:00:16]} 18. Qb1 {[%emt 0:02:19]} g5 {[%emt 0:03:19]} 19. Bg3 {[%emt 0:03:27]} Bd8 {[%emt 0:13:49]} 20. Nd2 {[%emt 0:08:12]} Ne8 {[%emt 0:07:26]} 21. Nb3 {[%emt 0:19:02]} Rxa1 {[%emt 0:05:52]} 22. Qxa1 {[%emt 0:01:36]} bxc5 {[%emt 0:00:32]} 23. Nxc5 {[%emt 0:00:38]} Nxc5 {[%emt 0:01:05]} 24. bxc5 {[%emt 0:00:18]} Kf8 {[%emt 0:04:05]} 25. Qa4 {[%emt 0:04:42]} h5 {[%emt 0:05:45]} 26. Qd1 {[%emt 0:06:07]} h4 {[%emt 0:01:06]} 27. Bh2 {[%emt 0:01:40]} Qb4 {[%emt 0:01:46]} 28. Na2 {[%emt 0:04:15]} Qb2 {[%emt 0:03:58]} 29. Nc1 {[%emt 0:00:08]} Qb1 {[%emt 0:03:12]} 30. Qf1 {[%emt 0:00:11]} f6 {[%emt 0:06:30]} 31. Nd3 {[%emt 0:00:42]} Qb3 {[%emt 0:00:55]} 32. f4 {[%emt 0:01:08]} f5 {[%emt 0:04:55]} 33. fxg5 {[%emt 0:07:56]} Bxg5 {[%emt 0:00:14]} 34. Bf4 {[%emt 0:00:03]} Bxf4 {[%emt 0:00:10]} 35. Nxf4 {[%emt 0:00:25]} Qxe3+ {[%emt 0:01:02]} 36. Qf2 {[%emt 0:00:07]} Qe4 {[%emt 0:05:48]} 37. Ng6+ {[%emt 0:01:20]} Kg7 {[%emt 0:04:34]} 38. Nxh4 {[%emt 0:02:08]} Nf6 {[%emt 0:09:37]} 39. Qg3+ {[%emt 0:03:09]} Kf8 {[%emt 0:01:15]} 40. Qd6+ {[%emt 0:00:00]} Kg8 {[%emt 0:00:00]} 41. Nf3 {[%emt 0:15:49]} Qe3+ {[%emt 0:20:35]} 42. Kh2 {[%emt 0:01:37]} Nh5 {[%emt 0:01:06]} 43. h4 {[%emt 0:05:13]} Qf4+ {[%emt 0:22:16]} 44. Qxf4 {[%emt 0:00:20]} Nxf4 {[%emt 0:00:01]} 45. Ne5 {[%emt 0:00:28]} Ne2 {[%emt 0:00:15]} 46. Nxc6 {[%emt 0:00:06]} Kf8 {[%emt 0:01:24]} 47. g3 {[%emt 0:01:34]} f4 {[%emt 0:00:37]} 48. gxf4 {[%emt 0:01:02]} Nxf4 {[%emt 0:00:01]} 49. Kg3 {[%emt 0:00:29]} e5 {[%emt 0:00:01]} 50. Nxe5 {[%emt 0:08:13]} Ne2+ {[%emt 0:00:01]} 51. Kg4 {[%emt 0:00:15]} Nxd4 {[%emt 0:00:01]} 52. c6 {[%emt 0:00:57]} Nb5 {[%emt 0:00:59]} 53. Kf5 {[%emt 0:04:23]} Kg7 {[%emt 0:00:30]} 54. Ke6 {[%emt 0:04:59]} d4 {[%emt 0:00:04]} 55. Kd5 {[%emt 0:00:09]} Kf6 {[%emt 0:00:23]} 56. Nf3 {[%emt 0:05:12]} d3 {[%emt 0:00:58]} 57. Kc4 {[%emt 0:00:15]} Na7 {[%emt 0:01:53]} 58. c7 {[%emt 0:00:02]} Ke7 {[%emt 0:01:01]} 59. Kxd3 {[%emt 0:00:19]} Kd7 {[%emt 0:00:25]} 60. h5 {[%emt 0:00:16]} Nc8 {[%emt 0:00:39]} 61. h6 {[%emt 0:00:10]} Nd6 {[%emt 0:00:13]} 62. Ne5+ {[%emt 0:00:08]} 1-0

[Event "13th Asrian Memorial 2022"]
[Site "Yerevan"]
[Date "2022.06.14"]
[Round "8.2"]
[White "Hayrapetyan, Hovik"]
[Black "Ter-Sahakyan, Samvel"]
[Result "0-1"]
[ECO "E50"]
[WhiteElo "2484"]
[BlackElo "2640"]
[Annotator "RC"]
[PlyCount "60"]
[EventDate "2022.06.07"]
[EventType "swiss"]
[EventCountry "ARM"]
[SourceTitle "playchess.com"]
[Source "ChessBase"]
[SourceQuality "1"]
[TimeControl "40/5400+30:1800+30"]

1. d4 {[%emt 0:11:21]} Nf6 {[%emt 0:00:11]} 2. c4 {[%emt 0:00:08]} e6 {[%emt 0:00:05]} 3. Nc3 {[%emt 0:00:40]} Bb4 {[%emt 0:00:09]} 4. Nf3 {[%emt 0:00:40]} O-O {[%emt 0:00:26]} 5. e3 {[%emt 0:04:03]} d5 {[%emt 0:04:04]} 6. cxd5 {[%emt 0:05:14]} exd5 {[%emt 0:00:17]} 7. Bd2 {[%emt 0:05:45]} Re8 {[%emt 0:22:16]} 8. a3 {[%emt 0:02:37]} Bd6 {[%emt 0:01:25]} 9. Bd3 {[%emt 0:06:17]} c6 {[%emt 0:04:51]} 10. Qc2 {[%emt 0:06:41]} Nbd7 {[%emt 0:00:35]} 11. O-O {[%emt 0:02:11]} Qe7 {[%emt 0:07:07]} 12. b4 {[%emt 0:09:48]} Ne4 {[%emt 0:12:17]} 13. Bc1 {[%emt 0:06:20]} Nf8 {[%emt 0:09:23]} 14. Bb2 {[%emt 0:01:56]} Ng6 {[%emt 0:00:33]} 15. Bxe4 {[%emt 0:07:56]} dxe4 {[%emt 0:00:12]} 16. Nd2 {[%emt 0:00:02]} Bf5 {[%emt 0:02:59]} 17. Nc4 {[%emt 0:07:06]} Nh4 {[%emt 0:12:02]} 18. Ne2 {[%emt 0:01:20]} Qg5 {[%emt 0:03:29]} 19. Ng3 {[%emt 0:00:27]} Bc7 {[%emt 0:00:04]} 20. f4 {[%emt 0:10:59]} exf3 {[%emt 0:05:42]} 21. Nxf5 {[%emt 0:00:07]} Nxf5 {[%emt 0:01:24]} 22. Rxf3 {[%emt 0:00:30]} Nxe3 {[%emt 0:02:19]} 23. Nxe3 {[%emt 0:06:53]} Rxe3 {[%emt 0:00:13]} 24. Rf2 {[%emt 0:01:34]} Rae8 {[%emt 0:02:39]} 25. Raf1 {[%emt 0:01:06]} Qh4 {[%emt 0:01:26]} 26. g3 {[%emt 0:01:12]} Bxg3 {[%emt 0:00:27]} 27. Rg2 {[%emt 0:02:17]} Re1 {[%emt 0:01:56]} 28. Bc3 {[%emt 0:05:02]} Rxf1+ {[%emt 0:01:27]} 29. Kxf1 {[%emt 0:00:04]} Qf4+ {[%emt 0:00:57]} 30. Kg1 {[%emt 0:00:06]} Be1 {[%emt 0:00:32]} 0-1

[Event "13th Asrian Memorial 2022"]
[Site "Yerevan"]
[Date "2022.06.14"]
[Round "8.3"]
[White "Andriasian, Zaven"]
[Black "Davtyan, Artur"]
[Result "0-1"]
[ECO "C54"]
[WhiteElo "2584"]
[BlackElo "2488"]
[Annotator "RC"]
[PlyCount "66"]
[EventDate "2022.06.07"]
[EventType "swiss"]
[EventCountry "ARM"]
[SourceTitle "playchess.com"]
[Source "ChessBase"]
[SourceQuality "1"]
[TimeControl "40/5400+30:1800+30"]

1. e4 {[%emt 0:00:05]} e5 {[%emt 0:01:20]} 2. Nf3 {[%emt 0:00:15]} Nc6 {[%emt 0:00:07]} 3. Bc4 {[%emt 0:00:07]} Nf6 {[%emt 0:00:06]} 4. d3 {[%emt 0:00:10]} Bc5 {[%emt 0:00:27]} 5. Nbd2 {[%emt 0:00:13]} d6 {[%emt 0:00:27]} 6. c3 {[%emt 0:00:07]} O-O {[%emt 0:00:09]} 7. O-O {[%emt 0:00:14]} a5 {[%emt 0:00:05]} 8. Bb3 {[%emt 0:02:02]} Be6 {[%emt 0:00:46]} 9. Bc2 {[%emt 0:01:37]} Ba7 {[%emt 0:11:59]} 10. h3 {[%emt 0:00:57]} h6 {[%emt 0:11:54]} 11. Re1 {[%emt 0:00:18]} Re8 {[%emt 0:04:42]} 12. Nf1 {[%emt 0:00:22]} d5 {[%emt 0:01:32]} 13. exd5 {[%emt 0:00:17]} Bxd5 {[%emt 0:03:06]} 14. Ng3 {[%emt 0:00:20]} b5 {[%emt 0:02:46]} 15. Be3 {[%emt 0:03:10]} Qb8 {[%emt 0:15:57]} 16. Nh4 {[%emt 0:02:12]} Qb7 {[%emt 0:11:08]} 17. Ne4 {[%emt 0:04:14]} Bxe4 {[%emt 0:03:03]} 18. dxe4 {[%emt 0:00:49]} Rad8 {[%emt 0:00:05]} 19. Qf3 {[%emt 0:01:02]} Bxe3 {[%emt 0:00:09]} 20. Rxe3 {[%emt 0:00:38]} Rd2 {[%emt 0:01:02]} 21. Rc1 {[%emt 0:02:03]} Ne7 {[%emt 0:01:15]} 22. Qg3 {[%emt 0:02:07]} Qb6 {[%emt 0:00:06]} 23. Nf3 {[%emt 0:01:38]} Rdd8 {[%emt 0:09:10]} 24. Nxe5 {[%emt 0:00:39]} a4 {[%emt 0:00:10]} 25. Nf3 {[%emt 0:02:08]} Nf5 {[%emt 0:00:25]} 26. exf5 {[%emt 0:14:04]} Rxe3 {[%emt 0:00:02]} 27. Qh4 {[%emt 0:03:32]} a3 {[%emt 0:02:51]} 28. Rb1 {[%emt 0:11:23]} Re2 {[%emt 0:01:02]} 29. Bb3 {[%emt 0:00:10]} axb2 {[%emt 0:01:37]} 30. Nd4 {[%emt 0:01:40]} Re4 {[%emt 0:00:28]} 31. Qg3 {[%emt 0:00:08]} c5 {[%emt 0:01:28]} 32. Nf3 {[%emt 0:00:33]} c4 {[%emt 0:00:34]} 33. Bc2 {[%emt 0:01:46]} Nh5 {[%emt 0:00:35]} 0-1

[Event "13th Asrian Memorial 2022"]
[Site "Yerevan"]
[Date "2022.06.14"]
[Round "8.4"]
[White "Zarubitski, Viachaslau"]
[Black "Melkumyan, Hrant"]
[Result "1/2-1/2"]
[ECO "E73"]
[WhiteElo "2457"]
[BlackElo "2655"]
[Annotator "RC"]
[PlyCount "138"]
[EventDate "2022.06.07"]
[EventType "swiss"]
[EventCountry "ARM"]
[SourceTitle "playchess.com"]
[Source "ChessBase"]
[SourceQuality "1"]
[TimeControl "40/5400+30:1800+30"]

1. c4 {[%emt 0:00:04]} Nf6 {[%emt 0:00:29]} 2. Nc3 {[%emt 0:00:10]} g6 {[%emt 0:00:32]} 3. e4 {[%emt 0:00:16]} d6 {[%emt 0:00:08]} 4. d4 {[%emt 0:00:17]} Bg7 {[%emt 0:00:09]} 5. Be2 {[%emt 0:00:22]} O-O {[%emt 0:00:25]} 6. h4 {[%emt 0:00:06]} Nc6 {[%emt 0:05:54]} 7. d5 {[%emt 0:02:14]} Ne5 {[%emt 0:00:26]} 8. h5 {[%emt 0:02:43]} c6 {[%emt 0:03:48]} 9. Nf3 {[%emt 0:09:32]} Nxf3+ {[%emt 0:05:14]} 10. Bxf3 {[%emt 0:00:34]} cxd5 {[%emt 0:00:41]} 11. cxd5 {[%emt 0:00:48]} b5 {[%emt 0:07:31]} 12. hxg6 {[%emt 0:00:54]} fxg6 {[%emt 0:00:14]} 13. Bh6 {[%emt 0:00:56]} Bxh6 {[%emt 0:02:09]} 14. Rxh6 {[%emt 0:00:07]} Qb6 {[%emt 0:00:37]} 15. Qd2 {[%emt 0:12:40]} b4 {[%emt 0:02:54]} 16. Nd1 {[%emt 0:00:14]} Ba6 {[%emt 0:01:18]} 17. Ne3 {[%emt 0:03:30]} Rac8 {[%emt 0:01:12]} 18. Rh1 {[%emt 0:07:10]} Nd7 {[%emt 0:16:02]} 19. Nf5 {[%emt 0:08:19]} Rxf5 {[%emt 0:16:29]} 20. exf5 {[%emt 0:00:19]} Ne5 {[%emt 0:00:05]} 21. Be2 {[%emt 0:09:17]} Bxe2 {[%emt 0:00:35]} 22. Qxe2 {[%emt 0:00:13]} Rf8 {[%emt 0:01:50]} 23. Rh3 {[%emt 0:16:38]} Rxf5 {[%emt 0:01:51]} 24. Rc1 {[%emt 0:01:25]} h5 {[%emt 0:04:25]} 25. Re3 {[%emt 0:04:05]} b3 {[%emt 0:13:41]} 26. Rxb3 {[%emt 0:02:22]} Qa5+ {[%emt 0:00:01]} 27. Kf1 {[%emt 0:00:18]} Qxd5 {[%emt 0:00:07]} 28. Kg1 {[%emt 0:03:41]} Kf7 {[%emt 0:06:43]} 29. Qd1 {[%emt 0:02:51]} Qe4 {[%emt 0:00:56]} 30. Re3 {[%emt 0:01:27]} Qf4 {[%emt 0:00:22]} 31. Qe2 {[%emt 0:02:07]} Qg5 {[%emt 0:01:46]} 32. Rc7 {[%emt 0:01:15]} Rf4 {[%emt 0:00:11]} 33. Rg3 {[%emt 0:02:46]} Qf5 {[%emt 0:00:29]} 34. Qc2 {[%emt 0:01:02]} Rd4 {[%emt 0:03:23]} 35. Qb3+ {[%emt 0:05:46]} d5 {[%emt 0:00:41]} 36. Rc1 {[%emt 0:01:27]} Rd2 {[%emt 0:02:52]} 37. Rf1 {[%emt 0:00:01]} Qf4 {[%emt 0:01:09]} 38. Re3 {[%emt 0:00:44]} Qd4 {[%emt 0:00:49]} 39. Qc3 {[%emt 0:00:46]} Qxc3 {[%emt 0:00:13]} 40. bxc3 {[%emt 0:00:00]} Ng4 {[%emt 0:00:00]} 41. Ree1 {[%emt 0:03:33]} Nf6 {[%emt 0:15:57]} 42. f3 {[%emt 0:00:13]} Rxa2 {[%emt 0:02:25]} 43. Ra1 {[%emt 0:00:06]} Re2 {[%emt 0:01:52]} 44. Rfe1 {[%emt 0:03:00]} Rxe1+ {[%emt 0:00:18]} 45. Rxe1 {[%emt 0:00:02]} Ne8 {[%emt 0:00:08]} 46. Ra1 {[%emt 0:00:15]} Nd6 {[%emt 0:00:07]} 47. Ra5 {[%emt 0:00:09]} e6 {[%emt 0:00:11]} 48. Rxa7+ {[%emt 0:04:17]} Kf6 {[%emt 0:00:02]} 49. Ra5 {[%emt 0:00:59]} g5 {[%emt 0:01:28]} 50. Kf2 {[%emt 0:00:47]} g4 {[%emt 0:01:12]} 51. Ra8 {[%emt 0:03:47]} gxf3 {[%emt 0:01:08]} 52. gxf3 {[%emt 0:00:48]} h4 {[%emt 0:00:08]} 53. Rh8 {[%emt 0:00:38]} Nb5 {[%emt 0:01:20]} 54. c4 {[%emt 0:02:45]} dxc4 {[%emt 0:00:05]} 55. Rxh4 {[%emt 0:00:03]} Nd6 {[%emt 0:00:05]} 56. Ke2 {[%emt 0:01:48]} Ke5 {[%emt 0:00:07]} 57. Kd2 {[%emt 0:00:32]} Kd5 {[%emt 0:00:06]} 58. Rg4 {[%emt 0:00:21]} e5 {[%emt 0:00:19]} 59. Rg8 {[%emt 0:02:16]} Nf5 {[%emt 0:00:36]} 60. Rd8+ {[%emt 0:00:24]} Kc5 {[%emt 0:00:02]} 61. Rf8 {[%emt 0:01:44]} Nd6 {[%emt 0:00:28]} 62. Ke3 {[%emt 0:01:15]} Kd5 {[%emt 0:00:21]} 63. Rd8 {[%emt 0:01:23]} Kc5 {[%emt 0:00:02]} 64. Rg8 {[%emt 0:00:38]} Kd5 {[%emt 0:00:48]} 65. Rg5 {[%emt 0:00:09]} Ke6 {[%emt 0:00:14]} 66. Kd2 {[%emt 0:00:38]} Nf5 {[%emt 0:00:08]} 67. Kc3 {[%emt 0:00:33]} Nd4 {[%emt 0:00:08]} 68. Kxc4 {[%emt 0:00:04]} Nxf3 {[%emt 0:00:05]} 69. Rxe5+ {[%emt 0:00:03]} Nxe5+ {[%emt 0:00:07]} 1/2-1/2